lending/lending_fUSD_20250913
["ID","MTS","AMOUNT","RATE_DAILY","PERIOD"]
[385364389,1757790853596,-1602.35,0.0003315,2]
[385364390,1757790853605,-344.99,0.0003315,2]
[385364391,1757790853615,-523.76,0.0003315,2]
[385364392,1757790853624,-634.16,0.0003315,2]
[385364393,1757790853633,-887.05,0.0003315,2]
[385364394,1757790853643,-942.86,0.0003315,2]
[385364395,1757790853653,-1448.36,0.0003315,2]
[385364396,1757790853662,-1697.7,0.0003315,2]
[385364397,1757790853671,-655.13,0.0003315,2]
[385364398,1757790853681,-2431.97,0.0003315,2]
[385364399,1757790853690,-488.5,0.0003315,2]
[385364400,1757790853700,-1288.99,0.0003315,2]
[385364401,1757790853709,-693.6,0.0003315,2]
[385364402,1757790853718,-914.74,0.0003315,2]
[385364403,1757790853728,-985.78,0.0003315,2]
[385364404,1757790853737,-734.11,0.0003315,2]
[385364405,1757790853746,-1199.53,0.0003315,2]
[385364406,1757790853756,-492.5,0.0003315,2]
[385364407,1757790853765,-683.66,0.0003315,2]
[385364408,1757790853776,-3119.56,0.0003315,2]
[385364409,1757790853786,-1155.29,0.0003315,2]
[385364410,1757790853795,-869.51,0.0003315,2]
[385364411,1757790853804,-1010.79,0.0003315,2]
[385364412,1757790853814,-655.9,0.0003315,2]
[385364413,1757790853823,-450.64,0.0003315,2]
[385364414,1757790853831,-1130.65,0.0003315,2]
[385364415,1757790853841,-1727.97,0.0003315,2]
[385364416,1757790853850,-971.87,0.0003315,2]
[385364417,1757790853859,-1049.74,0.0003315,2]
[385364418,1757790853870,-536.28,0.0003315,2]
[385364419,1757790853879,-920.05,0.0003315,2]
[385364420,1757790853888,-807.81,0.0003315,2]
[385364421,1757790853897,-1540.01,0.0003315,2]
[385364422,1757790853906,-767.61,0.0003315,2]
[385364423,1757790853915,-843.61,0.0003315,2]
[385364424,1757790853925,-798.34,0.0003315,2]
[385364425,1757790853934,-1507.18,0.0003315,2]
[385364426,1757790853943,-1074.98,0.0003315,2]
[385364427,1757790853952,-8779.55,0.0003315,2]
[385364428,1757790853961,-721.19,0.0003315,2]
[385364429,1757790853970,-1380.97,0.0003315,2]
[385364430,1757790853979,-1003.9,0.0003315,2]
[385364431,1757790853988,-594.63,0.0003315,2]
[385364432,1757790853996,-649.71,0.0003315,2]
[385364433,1757790854005,-506.79,0.0003315,2]
[385364434,1757790854014,-729.26,0.0003315,2]
[385364435,1757790854025,-813.26,0.0003315,2]
[385364436,1757790854034,-309.09,0.00033165,2]
[385364437,1757790854043,-158.0,0.00033279,120]
[385364438,1757790854052,-232.53592618,0.00033287,120]
[385364439,1757790854061,-403.48,0.00033424,2]
[385364440,1757790854070,-699.06,0.00033424,2]
[385364441,1757790854079,-888.74,0.00033424,2]
[385364442,1757790854088,-1067.33,0.00033424,2]
[385364443,1757790854097,-494.9,0.00033424,2]
[385364444,1757790854106,-222.53766451,0.00033424,2]
[385364445,1757790854115,-1011.1,0.00033424,2]
[385364446,1757790854124,-411.04,0.00033424,2]
[385364447,1757790854133,-436.55,0.00033424,2]
[385364448,1757790854141,-415.46,0.00033424,2]
[385364449,1757790854150,-1222.47,0.00033424,2]
[385364450,1757790854158,-751.49,0.00033424,2]
[385364451,1757790854167,-622.37,0.00033424,2]
[385364452,1757790854175,-512.06,0.00033424,2]
[385364453,1757790854184,-516.89,0.00033424,2]
[385364454,1757790854193,-572.28,0.00033424,2]
[385364455,1757790854201,-405.34,0.00033424,2]
[385364456,1757790854210,-892.3,0.00033424,2]
[385364457,1757790854219,-2090.35,0.00033424,2]
[385364458,1757790854227,-445.77,0.00033424,2]
[385364459,1757790854236,-849.51,0.00033424,2]
[385364460,1757790854245,-764.33,0.00033424,2]
[385364461,1757790854253,-812.38,0.00033424,2]
[385364462,1757790854262,-579.38,0.00033424,2]
[385364463,1757790854271,-1141.14,0.00033424,2]
[385364464,1757790854280,-650.0,0.00033424,120]
[385364465,1757790854289,-593.32,0.00033424,2]
[385364466,1757790854298,-762.02,0.00033424,2]
[385364467,1757790854306,-633.2,0.00033424,2]
[385364468,1757790854315,-548.72,0.00033424,2]
[385364469,1757790854323,-407.17799591,0.00033424,2]
[385364470,1757790854332,-411.96,0.00033424,2]
[385364471,1757790854341,-653.34,0.00033424,2]
[385364472,1757790854350,-891.73,0.00033424,2]
[385364473,1757790854359,-598.23,0.00033424,2]
[385364474,1757790854368,-1354.32,0.00033424,2]
[385364475,1757790854378,-518.98,0.00033424,2]
[385364476,1757790854387,-925.24,0.00033424,2]
[385364477,1757790854396,-722.44,0.00033424,2]
[385364478,1757790854405,-506.66,0.00033424,2]
[385364479,1757790854414,-1909.11,0.00033424,2]
[385364480,1757790854422,-886.75,0.00033424,2]
[385364481,1757790854431,-1138.1,0.00033424,2]
[385364482,1757790854441,-576.48,0.00033424,2]
[385364483,1757790854450,-291.24703667,0.00033424,2]
[385364484,1757790854459,-712.7,0.00033424,2]
[385364485,1757790854469,-434.81103201,0.00033424,2]
[385364486,1757790854478,-2782.51,0.00033424,2]
[385364487,1757790854487,-333.46457214,0.00033424,2]
[385364488,1757790854497,-400.0,0.00033424,2]
[385364489,1757790854507,-749.03,0.00033424,2]
[385364490,1757790854518,-476.93,0.00033424,2]
[385364491,1757790854527,-652.17,0.00033424,2]
[385364492,1757790854536,-1095.32,0.00033424,2]
[385364493,1757790854546,-778.01,0.00033424,2]
[385364494,1757790854556,-450.34,0.00033424,2]
[385364495,1757790854565,-623.72,0.00033424,2]
[385364496,1757790854574,-522.52,0.00033424,2]
[385364497,1757790854583,-1025.68,0.00033424,2]
[385364498,1757790854592,-1547.47,0.00033424,2]
[385364499,1757790854601,-452.08,0.00033424,2]
[385364500,1757790854611,-954.04,0.00033424,2]
[385364501,1757790854620,-972.47,0.00033424,2]
[385364502,1757790854628,-440.6,0.00033424,2]
[385364503,1757790854638,-1107.3,0.00033424,2]
[385364504,1757790854648,-1360.89,0.00033424,2]
[385364505,1757790854657,-438.49,0.00033424,2]
[385364506,1757790854666,-511.89,0.00033424,2]
[385364507,1757790854676,-875.02,0.00033424,2]
[385364508,1757790854685,-441.06,0.00033424,2]
[385364509,1757790854694,-540.34,0.00033424,2]
[385364510,1757790854703,-432.57,0.00033424,2]
[385364511,1757790854712,-605.1,0.00033424,2]
[385364512,1757790854721,-979.03,0.00033424,2]
[385364513,1757790854730,-639.66,0.00033424,2]
[385364514,1757790854739,-743.92,0.00033424,2]
[385364515,1757790854748,-549.77,0.00033424,2]
[385364516,1757790854756,-757.51,0.00033424,2]
[385364517,1757790854766,-1369.33,0.00033424,2]
[385364518,1757790854776,-976.5,0.00033424,2]
[385364519,1757790854785,-714.21,0.00033424,2]
[385364520,1757790854794,-429.54,0.00033424,2]
[385364521,1757790854803,-1200.51,0.00033424,2]
[385364522,1757790854812,-931.9,0.00033424,2]
[385364523,1757790854821,-867.52,0.00033424,2]
[385364524,1757790854830,-767.06,0.00033424,2]
[385364525,1757790854839,-522.36,0.00033424,2]
[385364526,1757790854848,-464.29,0.00033424,2]
[385364527,1757790854857,-1050.24,0.00033424,2]
[385364528,1757790854867,-712.0,0.00033424,2]
[385364529,1757790854876,-770.1,0.00033424,2]
[385364530,1757790854885,-1340.61,0.00033424,2]
[385364531,1757790854894,-744.56,0.00033424,2]
[385364532,1757790854903,-503.78,0.00033424,2]
[385364533,1757790854912,-933.78,0.00033424,2]
[385364534,1757790854922,-917.05,0.00033424,2]
[385364535,1757790854931,-601.03,0.00033424,2]
[385364536,1757790854940,-1166.06,0.00033424,2]
[385364537,1757790854949,-408.67,0.00033424,2]
[385364538,1757790854958,-744.95,0.00033424,2]
[385364539,1757790854967,-962.63,0.00033424,2]
[385364540,1757790854976,-944.97,0.00033424,2]
[385364541,1757790854985,-697.23,0.00033424,2]
[385364542,1757790854994,-1128.5,0.00033424,2]
[385364543,1757790855003,-1287.15,0.00033424,2]
[385364544,1757790855012,-1140.31,0.00033424,2]
[385364545,1757790855022,-883.84,0.00033424,2]
[385364546,1757790855032,-1121.16,0.00033424,2]
[385364547,1757790855041,-550.0,0.00033424,120]
[385364548,1757790855051,-359.0,0.00033424,2]
[385364549,1757790855059,-513.88,0.00033424,2]
[385364550,1757790855068,-766.79,0.00033424,2]
[385364551,1757790855077,-836.28,0.00033424,2]
[385364552,1757790855086,-1062.97,0.00033424,2]
[385364553,1757790855095,-701.46,0.00033424,2]
[385364554,1757790855104,-1010.43,0.00033424,2]
[385364555,1757790855113,-618.9,0.00033424,2]
[385364556,1757790855122,-740.73,0.00033424,2]
[385364557,1757790855131,-617.0,0.00033424,2]
[385364558,1757790855140,-955.87,0.00033424,2]
[385364559,1757790855149,-1394.15,0.00033424,2]
[385364560,1757790855158,-645.46,0.00033424,2]
[385364561,1757790855166,-475.16,0.00033424,2]
[385364562,1757790855175,-1201.25,0.00033424,2]
[385364563,1757790855184,-1420.48,0.00033424,2]
[385364564,1757790855193,-436.7,0.00033424,2]
[385364565,1757790855202,-886.97,0.00033424,2]
[385364566,1757790855211,-695.44,0.00033424,2]
[385364567,1757790855219,-1459.76,0.00033424,2]
[385364568,1757790855228,-869.21,0.00033424,2]
[385364569,1757790855237,-563.58,0.00033424,2]
[385364570,1757790855246,-565.26,0.00033424,2]
[385364571,1757790855255,-1134.89,0.00033424,2]
[385364572,1757790855264,-404.56,0.00033424,2]
[385364573,1757790855273,-734.93,0.00033424,2]
[385364574,1757790855282,-1149.23,0.00033424,2]
[385364575,1757790855291,-1190.66,0.00033424,2]
[385364576,1757790855302,-656.39,0.00033424,2]
[385364577,1757790855311,-1130.2,0.00033424,2]
[385364578,1757790855320,-914.37,0.00033424,2]
[385364579,1757790855329,-869.45,0.00033424,2]
[385364580,1757790855338,-459.11,0.00033424,2]
[385364581,1757790855348,-1022.06,0.00033424,2]
[385364582,1757790855357,-516.71,0.00033424,2]
[385364583,1757790855366,-1379.73,0.00033424,2]
[385364584,1757790855375,-899.94,0.00033424,2]
[385364585,1757790855384,-866.46,0.00033424,2]
[385364586,1757790855394,-556.4,0.00033424,2]
[385364587,1757790855403,-1195.99,0.00033424,2]
[385364588,1757790855412,-518.54,0.00033424,2]
[385364589,1757790855421,-1740.08,0.00033424,2]
[385364590,1757790855430,-1006.76,0.00033424,2]
[385364591,1757790855439,-668.89,0.00033424,2]
[385364592,1757790855449,-529.54,0.00033424,2]
[385364593,1757790855458,-927.44,0.00033424,2]
[385364594,1757790855467,-662.77,0.00033424,2]
[385364595,1757790855476,-586.65,0.00033424,2]
[385364596,1757790855485,-744.19,0.00033424,2]
[385364597,1757790855494,-899.11,0.00033424,2]
[385364598,1757790855503,-770.78,0.00033424,2]
[385364599,1757790855514,-714.15,0.00033424,2]
[385364600,1757790855525,-644.35,0.00033424,2]
[385364601,1757790855534,-453.23,0.00033424,2]
[385364602,1757790855543,-1002.56,0.00033424,2]
[385364603,1757790855553,-809.12,0.00033424,2]
[385364604,1757790855562,-864.64,0.00033424,2]
[385364605,1757790855571,-836.53,0.00033424,2]
[385364606,1757790855580,-800.39,0.00033424,2]
[385364607,1757790855590,-759.84,0.00033424,2]
[385364608,1757790855599,-438.06,0.00033424,2]
[385364609,1757790855608,-1067.29,0.00033424,2]
[385364610,1757790855617,-483.11,0.00033424,2]
[385364611,1757790855626,-890.46,0.00033424,2]
[385364612,1757790855635,-621.88,0.00033424,2]
[385364613,1757790855644,-1123.98,0.00033424,2]
[385364614,1757790855653,-440.32,0.00033424,2]
[385364615,1757790855662,-2863.78,0.00033424,2]
[385364616,1757790855671,-757.94,0.00033424,2]
[385364617,1757790855680,-557.63,0.00033424,2]
[385364618,1757790855690,-861.65,0.00033424,2]
[385364619,1757790855699,-803.76,0.00033424,2]
[385364620,1757790855708,-835.94,0.00033424,2]
[385364621,1757790855717,-434.25,0.00033424,2]
[385364622,1757790855726,-578.44,0.00033424,2]
[385364623,1757790855735,-550.07,0.00033424,2]
[385364624,1757790855744,-800.87,0.00033424,2]
[385364625,1757790855753,-286.47095854,0.00033424,2]
[385364626,1757790855762,-541.06,0.00033424,2]
[385364627,1757790855771,-652.82,0.00033424,2]
[385364628,1757790855780,-423.72,0.00033424,2]
[385364629,1757790855789,-1300.44,0.00033424,2]
[385364630,1757790855798,-439.16,0.00033424,2]
[385364631,1757790855807,-826.3,0.00033424,2]
[385364632,1757790855816,-787.45,0.00033424,2]
[385364633,1757790855825,-535.57,0.00033424,2]
[385364634,1757790855834,-800.47,0.00033424,2]
[385364635,1757790855843,-1253.6,0.00033424,2]
[385364636,1757790855853,-544.69,0.00033424,2]
[385364637,1757790855862,-944.98,0.00033424,2]
[385364638,1757790855871,-556.97,0.00033424,2]
[385364639,1757790855879,-652.8,0.00033424,2]
[385364640,1757790855889,-489.49,0.00033424,2]
[385364641,1757790855897,-842.01,0.00033424,2]
[385364642,1757790855906,-1082.49,0.00033424,2]
[385364643,1757790855915,-589.14,0.00033424,2]
[385364644,1757790855924,-890.6,0.00033424,2]
[385364645,1757790855932,-583.29,0.00033424,2]
[385364646,1757790855941,-708.58,0.00033424,2]
[385364647,1757790855951,-531.52,0.00033424,2]
[385364648,1757790855960,-439.06,0.00033424,2]
[385364649,1757790855968,-1252.15,0.00033424,2]
[385364650,1757790855977,-947.61,0.00033424,2]
[385364651,1757790855986,-1050.56,0.00033424,2]
[385364652,1757790855996,-872.42,0.00033424,2]
[385364653,1757790856005,-791.71,0.00033424,2]
[385364654,1757790856014,-407.96,0.00033424,2]
[385364655,1757790856023,-983.81,0.00033424,2]
[385364656,1757790856033,-868.8,0.00033424,2]
[385364657,1757790856042,-846.53,0.00033424,2]
[385364658,1757790856052,-730.89,0.00033424,2]
[385364659,1757790856061,-2593.64,0.00033424,2]
[385364660,1757790856070,-785.21,0.00033424,2]
[385364661,1757790856079,-447.29,0.00033424,2]
[385364662,1757790856088,-964.92,0.00033424,2]
[385364663,1757790856097,-428.63,0.00033424,2]
[385364664,1757790856105,-759.47,0.00033424,2]
[385364665,1757790856114,-620.45,0.00033424,2]
[385364666,1757790856123,-505.66,0.00033424,2]
[385364667,1757790856132,-862.8,0.00033424,2]
[385364668,1757790856142,-537.7,0.00033424,2]
[385364669,1757790856150,-427.09,0.00033424,2]
[385364670,1757790856160,-400.0,0.00033424,2]
[385364671,1757790856169,-1263.32,0.00033424,2]
[385364672,1757790856178,-786.15,0.00033424,2]
[385364673,1757790856187,-769.42,0.00033424,2]
[385364674,1757790856196,-4665.54,0.00033424,2]
[385364675,1757790856206,-958.92,0.00033424,2]
[385364676,1757790856216,-1162.64,0.00033424,2]
[385364677,1757790856225,-843.12,0.00033424,2]
[385364678,1757790856233,-830.89,0.00033424,2]
[385364679,1757790856243,-871.15,0.00033424,2]
[385364680,1757790856252,-484.74,0.00033424,2]
[385364681,1757790856261,-1106.22,0.00033424,2]
[385364682,1757790856271,-582.6,0.00033424,2]
[385364683,1757790856280,-1197.3,0.00033424,2]
[385364684,1757790856289,-3316.79,0.00033424,2]
[385364685,1757790856299,-898.38,0.00033424,2]
[385364686,1757790856308,-1081.81,0.00033424,2]
[385364687,1757790856317,-744.46,0.00033424,2]
[385364688,1757790856326,-1406.57,0.00033424,2]
[385364689,1757790856336,-2017.53,0.00033424,2]
[385364690,1757790856345,-420.47,0.00033424,2]
[385364691,1757790856355,-752.16,0.00033424,2]
[385364692,1757790856364,-843.08,0.00033424,2]
[385364693,1757790856374,-729.82,0.00033424,2]
[385364694,1757790856383,-924.42,0.00033424,2]
[385364695,1757790856392,-715.39,0.00033424,2]
[385364696,1757790856402,-1791.52,0.00033424,2]
[385364697,1757790856412,-905.52,0.00033424,2]
[385364698,1757790856421,-1035.92,0.00033424,2]
[385364699,1757790856431,-405.71,0.00033424,2]
[385364700,1757790856440,-543.24,0.00033424,2]
[385364701,1757790856449,-1125.91,0.00033424,2]
[385364702,1757790856458,-897.14,0.00033424,2]
[385364703,1757790856468,-405.06,0.00033424,2]
[385364704,1757790856478,-838.71,0.00033424,2]
[385364705,1757790856492,-778.35,0.00033424,2]
[385364706,1757790856504,-519.54,0.00033424,2]
[385364707,1757790856523,-1097.98,0.00033424,2]
[385364708,1757790856532,-812.08,0.00033424,2]
[385364709,1757790856541,-746.12,0.00033424,2]
[385364710,1757790856550,-1172.1,0.00033424,2]
[385364711,1757790856558,-1004.56,0.00033424,2]
[385364712,1757790856567,-1550.32,0.00033424,2]
[385364713,1757790856576,-406.12,0.00033424,2]
[385364714,1757790856585,-738.83,0.00033424,2]
[385364715,1757790856594,-1445.07,0.00033424,2]
[385364716,1757790856604,-681.1,0.00033424,2]
[385364717,1757790856613,-1822.15,0.00033424,2]
[385364718,1757790856623,-417.32,0.00033424,2]
[385364719,1757790856632,-1015.89,0.00033424,2]
[385364720,1757790856641,-636.43,0.00033424,2]
[385364721,1757790856651,-983.53,0.00033424,2]
[385364722,1757790856660,-722.69,0.00033424,2]
[385364723,1757790856669,-670.74,0.00033424,2]
[385364724,1757790856678,-458.09,0.00033424,2]
[385364725,1757790856687,-589.72,0.00033424,2]
[385364726,1757790856696,-761.25,0.00033424,2]
[385364727,1757790856706,-411.62,0.00033424,2]
[385364728,1757790856715,-422.08,0.00033424,2]
[385364729,1757790856724,-1393.14,0.00033424,2]
[385364730,1757790856733,-1118.88,0.00033424,2]
[385364731,1757790856745,-806.89,0.00033424,2]
[385364732,1757790856755,-862.09,0.00033424,2]
[385364733,1757790856764,-1836.39,0.00033424,2]
[385364734,1757790856774,-3209.32,0.00033424,2]
[385364735,1757790856783,-2346.72,0.00033424,2]
[385364736,1757790856793,-1033.98,0.00033424,2]
[385364737,1757790856802,-1286.51,0.00033424,2]
[385364738,1757790856812,-896.46,0.00033424,2]
[385364739,1757790856821,-837.65,0.00033424,2]
[385364740,1757790856830,-524.85,0.00033424,2]
[385364741,1757790856839,-941.17,0.00033424,2]
[385364742,1757790856849,-702.99,0.00033424,2]
[385364743,1757790856858,-1450.08,0.00033424,2]
[385364744,1757790856867,-872.8,0.00033424,2]
[385364745,1757790856876,-727.17,0.00033424,2]
[385364746,1757790856885,-765.36,0.00033424,2]
[385364747,1757790856894,-711.83,0.00033424,2]
[385364748,1757790856903,-778.2,0.00033424,2]
[385364749,1757790856912,-980.63,0.00033424,2]
[385364750,1757790856921,-2033.09,0.00033424,2]
[385364751,1757790856931,-677.3,0.00033424,2]
[385364752,1757790856940,-538.72,0.00033424,2]
[385364753,1757790856949,-1183.03,0.00033424,2]
[385364754,1757790856959,-722.19,0.00033424,2]
[385364755,1757790856968,-1015.48,0.00033424,2]
[385364756,1757790856977,-965.24,0.00033424,2]
[385364757,1757790856986,-599.03,0.00033424,2]
[385364758,1757790856995,-653.28,0.00033424,2]
[385364759,1757790857005,-974.74,0.00033424,2]
[385364760,1757790857014,-532.11,0.00033424,2]
[385364761,1757790857024,-775.6,0.00033424,2]
[385364762,1757790857034,-1047.99,0.00033424,2]
[385364763,1757790857043,-867.54,0.00033424,2]
[385364764,1757790857052,-741.23,0.00033424,2]
[385364765,1757790857061,-603.59,0.00033424,2]
[385364766,1757790857070,-1243.58,0.00033424,2]
[385364767,1757790857079,-2266.8,0.00033424,2]
[385364768,1757790857088,-835.84,0.00033424,2]
[385364769,1757790857097,-605.54,0.00033424,2]
[385364770,1757790857106,-526.24,0.00033424,2]
[385364771,1757790857116,-502.15,0.00033424,2]
[385364772,1757790857125,-495.47,0.00033424,2]
[385364773,1757790857134,-462.88,0.00033424,2]
[385364774,1757790857143,-2089.21,0.00033424,2]
[385364775,1757790857152,-1484.39,0.00033424,2]
[385364776,1757790857161,-858.84,0.00033424,2]
[385364777,1757790857171,-708.83,0.00033424,2]
[385364778,1757790857180,-1139.82,0.00033424,2]
[385364779,1757790857189,-676.37,0.00033424,2]
[385364780,1757790857198,-920.38,0.00033424,2]
[385364781,1757790857208,-785.36,0.00033424,2]
[385364782,1757790857217,-1042.18,0.00033424,2]
[385364783,1757790857226,-714.23,0.00033424,2]
[385364784,1757790857235,-894.39,0.00033424,2]
[385364785,1757790857244,-513.3,0.00033424,2]
[385364786,1757790857253,-924.41,0.00033424,2]
[385364787,1757790857262,-857.85,0.00033424,2]
[385364788,1757790857271,-2338.03,0.00033424,2]
[385364789,1757790857280,-722.3,0.00033424,2]
[385364790,1757790857290,-841.74,0.00033424,2]
[385364791,1757790857299,-814.0,0.00033424,2]
[385364792,1757790857308,-767.19,0.00033424,2]
[385364793,1757790857317,-415.27,0.00033424,2]
[385364794,1757790857460,-1469.88,0.00033424,2]
[385364795,1757790857470,-647.42,0.00033424,2]
[385364796,1757790857479,-1229.51,0.00033424,2]
[385364797,1757790857488,-449.16,0.00033424,2]
[385364798,1757790857498,-844.21,0.00033424,2]
[385364799,1757790857508,-1485.88,0.00033424,2]
[385364800,1757790857519,-2265.68,0.00033424,2]
[385364801,1757790857529,-865.66,0.00033424,2]
[385364802,1757790857538,-863.57,0.00033424,2]
[385364803,1757790857549,-572.0,0.00033424,2]
[385364804,1757790857559,-2112.49,0.00033424,2]
[385364805,1757790857569,-510.21,0.00033424,2]
[385364806,1757790857579,-1107.28,0.00033424,2]
[385364807,1757790857590,-1170.47,0.00033424,2]
[385364808,1757790857599,-841.3,0.00033424,2]
[385364809,1757790857609,-856.96,0.00033424,2]
[385364810,1757790857618,-1028.51,0.00033424,2]
[385364811,1757790857627,-906.61,0.00033424,2]
[385364812,1757790857637,-1458.58,0.00033424,2]
[385364813,1757790857646,-1006.96,0.00033424,2]
[385364814,1757790857655,-4256.1,0.00033424,2]
[385364815,1757790857665,-701.85,0.00033424,2]
[385364816,1757790857675,-728.15,0.00033424,2]
[385364817,1757790857685,-925.96,0.00033424,2]
[385364818,1757790857694,-445.69,0.00033424,2]
[385364819,1757790857703,-1198.57,0.00033424,2]
[385364820,1757790857713,-1974.67,0.00033424,2]
[385364821,1757790857722,-2857.69,0.00033424,2]
[385364822,1757790857731,-847.13,0.00033424,2]
[385364823,1757790857741,-834.58,0.00033424,2]
[385364824,1757790857750,-2990.98,0.00033424,2]
[385364825,1757790857759,-2302.98,0.00033424,2]
[385364826,1757790857768,-1747.56,0.00033424,2]
[385364827,1757790857779,-2111.33,0.00033424,2]
[385364828,1757790857791,-466.82,0.00033424,2]
[385364829,1757790857802,-2233.25,0.00033424,2]
[385364830,1757790857811,-1255.2,0.00033424,2]
[385364831,1757790857820,-1963.87,0.00033424,2]
[385364832,1757790857830,-694.91,0.00033424,2]
[385364833,1757790857839,-807.66,0.00033424,2]
[385364834,1757790857848,-927.88,0.00033424,2]
[385364835,1757790857857,-952.59,0.00033424,2]
[385364836,1757790857866,-1143.85,0.00033424,2]
[385364837,1757790857875,-2263.39,0.00033424,2]
[385364838,1757790857885,-931.48,0.00033424,2]
[385364839,1757790857894,-669.04,0.00033424,2]
[385364840,1757790857903,-1333.33,0.00033424,2]
[385364841,1757790857913,-944.31,0.00033424,2]
[385364842,1757790857922,-711.99,0.00033424,2]
[385364843,1757790857931,-1030.24,0.00033424,2]
[385364844,1757790857940,-1798.63,0.00033424,2]
[385364845,1757790857950,-977.53,0.00033424,2]
[385364846,1757790857959,-1079.08,0.00033424,2]
[385364847,1757790857969,-568.52,0.00033424,2]
[385364848,1757790857981,-923.82,0.00033424,2]
[385364849,1757790857990,-1374.51,0.00033424,2]
[385364850,1757790857999,-539.76,0.00033424,2]
[385364851,1757790858009,-532.15,0.00033424,2]
[385364852,1757790858018,-1021.66,0.00033424,2]
[385364853,1757790858028,-796.82,0.00033424,2]
[385364854,1757790858037,-707.41,0.00033424,2]
[385364855,1757790858046,-923.85,0.00033424,2]
[385364856,1757790858055,-585.84,0.00033424,2]
[385364857,1757790858064,-1683.27,0.00033424,2]
[385364858,1757790858073,-1254.84,0.00033424,2]
[385364859,1757790858083,-1026.54,0.00033424,2]
[385364860,1757790858092,-786.29,0.00033424,2]
[385364861,1757790858102,-492.79,0.00033424,2]
[385364862,1757790858111,-2328.06,0.00033424,2]
[385364863,1757790858120,-1854.12,0.00033424,2]
[385364864,1757790858130,-1159.49,0.00033424,2]
[385364865,1757790858139,-1262.94,0.00033424,2]
[385364866,1757790858148,-3059.22,0.00033424,2]
[385364867,1757790858157,-618.58,0.00033424,2]
[385364868,1757790858167,-400.0,0.00033424,2]
[385364869,1757790858176,-666.27,0.00033424,2]
[385364870,1757790858185,-2778.98,0.00033424,2]
[385364871,1757790858195,-438.09,0.00033424,2]
[385364872,1757790858204,-344.99,0.00033424,2]
[385364873,1757790858214,-1602.35,0.00033424,2]
[385364874,1757790858223,-523.76,0.00033424,2]
[385364875,1757790858232,-634.16,0.00033424,2]
[385364876,1757790858242,-887.05,0.00033424,2]
[385364877,1757790858251,-942.86,0.00033424,2]
[385364878,1757790858261,-1448.36,0.00033424,2]
[385364879,1757790858272,-1697.7,0.00033424,2]
[385364880,1757790858285,-655.13,0.00033424,2]
[385364881,1757790858295,-488.5,0.00033424,2]
[385364882,1757790858305,-2431.97,0.00033424,2]
[385364883,1757790858315,-1288.99,0.00033424,2]
[385364884,1757790858326,-693.6,0.00033424,2]
[385364885,1757790858337,-914.74,0.00033424,2]
[385364886,1757790858346,-985.78,0.00033424,2]
[385364887,1757790858356,-734.11,0.00033424,2]
[385364888,1757790858366,-1199.53,0.00033424,2]